Workbook

Sheet Sheet1
A1: Основное (организованное) меню для обучающихся 1-4 кл. (7 до 11 лет)
A2: ОВЗ, ДИ, ММС, дети участников СВО
A5: Рацион: Школьное меню 1-4 кл
A7: _Неделя: 1_ понедельник
A9: № рец. | D9: Пищевые вещества (г) | G9: Энерге-
B10: Прием пищи, наименование блюда | C10: Масса порции | D10: Б | E10: Ж | F10: У | G10: тическая ценность (ккал)
A11: 1 | B11: 2 | C11: 3 | D11: 4 | E11: 5 | F11: 6 | G11: 7
A12: Завтрак
A13: 198 | B13: Каша молочная пшенная | C13: 200/5 | D13: 7.57 | E13: 8.18 | F13: 36.41 | G13: 249.48
A14: 1 | B14: Чай витаминизированный "Витошка" | C14: 200 | F14: 6 | G14: 24
B15: Масло сливочное | C15: 10 | D15: 0.08 | E15: 7.25 | F15: 0.1 | G15: 66
B16: Сыр (порциями) | C16: 15 | D16: 3.48 | E16: 4.4 | F16: 0 | G16: 54.6
B17: Хлеб пшеничный обогащенный витаминами для детского питания | C17: 30 | D17: 2 | E17: 0.3 | F17: 14.6 | G17: 73
B18: Фрукт | C18: 100 | D18: 0.4 | E18: 0.4 | F18: 9.8 | G18: 47
A19: Итого за Завтрак | C19: 560 | D19: 13.53 | E19: 20.53 | F19: 66.91 | G19: 514.08
A21: № рец. | B21: Прием пищи, наименование блюда | C21: Масса порции | D21: Пищевые вещества (г) | G21: Энергетическая ценность (ккал)
D22: Б | E22: Ж | F22: У
A23: 1 | B23: 2 | C23: 3 | D23: 4 | E23: 5 | F23: 6 | G23: 7
A24: Обед
A25: 52 | B25: Щи из свежей капусты с картофелем со сметаной | C25: 250 | D25: 1.89 | E25: 10.77 | F25: 9.08 | G25: 140.79
A26: 82 | B26: Рыбные котлеты под томатным соусом | C26: 80 | D26: 11.82 | E26: 9.38 | F26: 16.49 | G26: 178.94
A27: 215 | B27: Макаронные изделия отварные с маслом | C27: 200 | D27: 7.87 | E27: 6 | F27: 50.15 | G27: 288.03
A28: 292 | B28: Компот из сухофруктов | C28: 200 | D28: 1.15 | E28: 0.24 | F28: 20.01 | G28: 86.74
B29: Хлеб пшеничный обогащенный витаминами для детского питания | C29: 30 | D29: 2.28 | E29: 0.24 | F29: 14.78 | G29: 70.32
B30: Хлеб ржаной | C30: 30 | D30: 1.83 | E30: 0.38 | F30: 11.97 | G30: 68.44
A31: Итого за Обед | C31: =SUM(C25:C30) -> 790 | D31: =SUM(D25:D30) -> 26.84 | E31: =SUM(E25:E30) -> 27.01 | F31: =SUM(F25:F30) -> 122.48 | G31: =SUM(G25:G30) -> 833.26
A38: Рацион: Школьное меню 1-4 кл
A40: _Неделя: 1_ вторник
A42: № рец. | B42: Прием пищи, наименование блюда | C42: Масса порции | D42: Пищевые вещества (г) | G42: энергетическая ценность (ккал}
D43: Б | E43: Ж | F43: У
A44: 1 | B44: 2 | C44: 3 | D44: 4 | E44: 5 | F44: 6 | G44: 7
A45: Завтрак
A46: 95 | B46: Жаркое по-домашнему | C46: 200 | D46: 17.9 | E46: 18.59 | F46: 16.25 | G46: 303.9
A47: 294 | B47: Чай с лимоном и сахаром | C47: 200 | D47: 0.06 | E47: 0.01 | F47: 10.21 | G47: 41.15
A48: 1 | B48: Хлеб пшеничный обогащенный витаминами для детского питания | C48: 30 | D48: 2 | E48: 0.3 | F48: 14.6 | G48: 73
B49: Сок фруктовый | C49: 200 | D49: 0.4 | E49: 0.4 | F49: 40.2 | G49: 92
A50: Итого за Завтрак 630 | D50: =SUM(D46:D49) -> 20.36 | E50: =SUM(E46:E49) -> 19.3 | F50: =SUM(F46:F49) -> 81.26 | G50: =SUM(G46:G49) -> 510.05
A52: № | B52: Прием пищи, наименование блюда | C52: Масса порции | D52: Пищевые вещества (г) | G52: Энерге-
A53: рец. | D53: Б | E53: Ж | F53: У | G53: тическая ценность
A54: 1 | B54: 2 | C54: 3 | D54: 4 | E54: 5 | F54: 6 | G54: 7
A55: Обед
A56: 41 | B56: Винегрет овощной | C56: 80 | D56: 1.13 | E56: 2.13 | F56: 6.48 | G56: 49.69
A57: 61 | B57: Суп картофельный с клецками | C57: 250 | D57: 1.78 | E57: 2.42 | F57: 12.17 | G57: 77.53
A58: 134 | B58: Плов из мяса птицы | C58: 150 | D58: 20.34 | E58: 28.36 | F58: 35.82 | G58: 480.23
A59: 160203 | B59: Кисель из смородины | C59: 200 | D59: 0.05 | F59: 23.59 | G59: 94.59
B60: Хлеб пшеничный обогащенный витаминами для детского питания | C60: 30 | D60: 2.28 | E60: 0.24 | F60: 14.78 | G60: 70.32
B61: Хлеб ржаной | C61: 30 | D61: 1.83 | E61: 0.38 | F61: 11.97 | G61: 68.44
A62: Итого за Обед | C62: =SUM(C56:C61) -> 740 | D62: =SUM(D56:D61) -> 27.41 | E62: =SUM(E56:E61) -> 33.53 | F62: =SUM(F56:F61) -> 104.81 | G62: =SUM(G56:G61) -> 840.8
A65: Витаминизация с 01.09.2024 до 29.12.2024 г.
A66: Обед
B67: Фрукт апельсин | C67: 100 | D67: 0,4 | E67: 0,4 | F67: 9,8 | G67: 47
A76: Рацион: Школьное меню 1-4 кл
A78: Неделя: 1 _среда
A80: № рец. | B80: Прием пищи, наименование блюда | C80: Масса порции | D80: Пищевые вещества (г) | G80: jHepre-тическая ценность ^ккяп!
D81: Б | E81: Ж | F81: У
B82: 2 | C82: 3 | D82: 4 | E82: 5 | F82: 6 | G82: 7
A83: Завтрак
A84: 132 | B84: Котлеты рубленые из мяса птицы с томатным соусом | C84: 60/20 | D84: 9.8 | E84: 12.59 | F84: 10.84 | G84: 195.85
A85: 130301 | B85: Рис отварной | C85: 200 | D85: 4.95 | E85: 5.05 | F85: 51.88 | G85: 272.75
A86: 288 | B86: Какао с молоком | C86: 200 | D86: 0.1 | F86: 9.1 | G86: 35
B87: Сыр (порциями) | C87: 15 | D87: 3.39 | E87: 3.5 | F87: 14.88 | G87: 104.58
B88: Хлеб пшеничный обогащенный витаминами для детского питания | C88: 30 | D88: 2 | E88: 0.3 | F88: 14.6 | G88: 73
A89: Итого за Завтрак | C89: =525 -> 525 | D89: =SUM(D84:D88) -> 20.24 | E89: =SUM(E84:E88) -> 21.44 | F89: =SUM(F84:F88) -> 101.3 | G89: =SUM(G84:G88) -> 681.18
A91: № рец. | B91: Прием пищи, наименование блюда | C91: Масса порции | D91: Пищевые вещества (г) | G91: Энергетическая ценность
D92: Б | E92: Ж | F92: У
A93: 1 | B93: 2 | C93: 3 | D93: 4 | E93: 5 | F93: 6 | G93: 7
A94: Обед
A95: 62 | B95: Суп картофельный с бобовыми и гренками | C95: 230/20 | D95: 7.67 | E95: 4.08 | F95: 2.55 | G95: 197.49
A96: 93 | B96: Гуляш из говядины | C96: 120 | D96: 21.23 | E96: 20.81 | F96: 3.33 | G96: 285.48
A97: 139 | B97: Картофель отварной | C97: 205 | D97: 4.15 | E97: 3.94 | F97: 33.64 | G97: 186.63
A98: 283 | B98: Чай с молоком сахаром | C98: 200 | D98: 1.45 | E98: 1.6 | F98: 12.35 | G98: 69.59
B99: Хлеб пшеничный обогащенный витаминами для детского питания | C99: 30 | D99: 2.28 | E99: 0.24 | F99: 14.78 | G99: 70.32
B100: Хлеб ржаной | C100: 30 | D100: 1.83 | E100: 0.38 | F100: 11.97 | G100: 68.44
A101: Итого за Обед | C101: 835 | D101: =SUM(D95:D100) -> 38.61 | E101: =SUM(E95:E100) -> 31.05 | F101: =SUM(F95:F100) -> 78.62 | G101: =SUM(G95:G100) -> 877.95
A104: Витаминизация с 01.09.2024 до 29.12.2024 г.
A105: Завтрак
B106: Сок фруктовый в индивидуальной упаковке | C106: 200 | D106: 0,4 | E106: 0,4 | F106: 40.2 | G106: 92
A114: Рацион: Школьное меню 1-4 кл
A116: _Неделя: 1_ четверг
A118: № | B118: Прием пищи, наименование блюда | C118: Масса порции | D118: Пищевые вещества (г) | G118: Энерге-
A119: рец. | D119: Б | E119: Ж | F119: У | G119: тическая ценность
A120: 1 | B120: 2 | C120: 3 | D120: 4 | E120: 5 | F120: 6 | G120: 7
A121: Завтрак
A122: 120305 | B122: Запеканка (сырник) из творога со сгущенным молоком | C122: 60/15 | D122: 21.57 | E122: 8.1 | F122: 26.42 | G122: 264.73
A123: 194 | B123: Каша молочная манная с маслом | C123: 100/5 | D123: 3.52 | E123: 4.48 | F123: 17.85 | G123: 125.85
A124: 284 | B124: Чай с лимоном и сахаром | C124: 200 | D124: 0.06 | E124: 0.01 | F124: 10.21 | G124: 41.15
B125: Хлеб пшеничный обогащенный витаминами для детского питания | C125: 30 | D125: 2 | E125: 0.3 | F125: 14.6 | G125: 73
B126: Яблоко | C126: 100 | D126: 0.4 | E126: 0.4 | F126: 9.8 | G126: 47
A127: Итого за Завтрак | C127: 510 | D127: =SUM(D122:D126) -> 27.55 | E127: =SUM(E122:E126) -> 13.29 | F127: =SUM(F122:F126) -> 78.88 | G127: =SUM(G122:G126) -> 551.73
A129: № | B129: Прием пищи, наименование блюда | C129: Масса порции | D129: Пищевые вещества (г) | G129: Энерге-
A130: рец. | D130: Б | E130: Ж | F130: У | G130: тическая ценность
A131: 1 | B131: 2 | C131: 3 | D131: 4 | E131: 5 | F131: 6 | G131: 7
A132: Обед
A133: 55 | B133: Борщ с капустой и картофелем со сметаной | C133: 250 | D133: 1.95 | E133: 6.15 | F133: 12.37 | G133: 112.58
A134: 97 | B134: Котлеты из говядины | C134: 90/30 | D134: 15.56 | E134: 20.14 | F134: 17.77 | G134: 314.72
A135: 130309 | B135: Каша гречневая рассыпчатая с маслом сливочным | C135: 150 | D135: 4.22 | E135: 3.28 | F135: 19.05 | G135: 122.56
A136: 160217 | B136: Напиток яблочный | C136: 200 | D136: 0.03 | E136: 0.03 | F136: 10.67 | G136: 43.03
B137: Хлеб пшеничный обогащенный витаминами для детского питания | C137: 30 | D137: 2.28 | E137: 0.24 | F137: 14.78 | G137: 70.32
B138: Хлеб ржаной | C138: 30 | D138: 1.83 | E138: 0.38 | F138: 11.97 | G138: 68.44
A139: Итого за Обед | C139: 780 | D139: =SUM(D133:D138) -> 25.87 | E139: =SUM(E133:E138) -> 30.22 | F139: =SUM(F133:F138) -> 86.61 | G139: =SUM(G133:G138) -> 731.65
A152: Рацион: Школьное меню 1-4 кл
A154: _Неделя: 1_ пятница
A156: № | B156: Прием пищи, наименование блюда | C156: Масса порции | D156: Пищевые вещества (г) | G156: Энерге-
A157: рец. | D157: Б | E157: Ж | F157: У | G157: тическая ценность
A158: 1 | B158: 2 | C158: 3 | D158: 4 | E158: 5 | F158: 6 | G158: 7
A159: Завтрак
A160: 120213 | B160: Макароны .запеченные с сыром | C160: 250 | D160: 14.08 | E160: 9.28 | F160: 61.41 | G160: 385.43
A161: 288 | B161: Какао с молоком | C161: 200 | D161: 3.39 | E161: 3.5 | F161: 14.88 | G161: 104.58
B162: Хлеб пшеничный обогащенный витаминами для детского питания | C162: 40 | D162: 3.04 | E162: 0.32 | F162: 19.68 | G162: 93.76
B163: Масло сливочное | C163: 15 | D163: 0.12 | E163: 10.88 | F163: 0.2 | G163: 99.14
A164: Итого за Завтрак | C164: =SUM(C160:C163) -> 505 | D164: =SUM(D160:D163) -> 20.63 | E164: =SUM(E160:E163) -> 23.98 | F164: =SUM(F160:F163) -> 96.17 | G164: =SUM(G160:G163) -> 682.91
A166: № | B166: Прием пищи, наименование блюда | C166: Масса порции | D166: Пищевые вещества (г) | G166: Энерге-
A167: рец. | D167: Б | E167: Ж | F167: У | G167: тическая ценность
A168: 1 | B168: 2 | C168: 3 | D168: 4 | E168: 5 | F168: 6 | G168: 7
A169: Обед
A170: 65 | B170: Суп-лапша домашняя | C170: 250 | D170: 3.55 | E170: 5.33 | F170: 18.45 | G170: 135.98
A171: 131 | B171: Биточки из мяса птицы с томатным соусом | C171: 80 | D171: 13.08 | E171: 12.2 | F171: 10.85 | G171: 205.52
A172: 141 | B172: Картофельное пюре | C172: 200 | D172: 4.33 | E172: 6.72 | F172: 29.21 | G172: 194.58
A173: 160231 | B173: Напиток вишневый | C173: 200 | D173: 0.02 | E173: 0 | F173: 11.8 | G173: 47.29
B174: Хлеб пшеничный обогащенный витаминами для детского питания | C174: 30 | D174: 2.28 | E174: 0.24 | F174: 14.78 | G174: 70.32
B175: Хлеб ржаной | C175: 30 | D175: 1.83 | E175: 0.38 | F175: 11.97 | G175: 68.44
A176: Итого за Обед | C176: =SUM(C170:C175) -> 790 | D176: =SUM(D170:D175) -> 25.09 | E176: =SUM(E170:E175) -> 24.87 | F176: =SUM(F170:F175) -> 97.06 | G176: =SUM(G170:G175) -> 722.13
A190: Рацион: Школьное меню 1-4 кл
A192: _Неделя: 2_ понедельник
A194: № | B194: Прием пищи, наименование блюда | D194: Пищевые вещества (г) | G194: Энерге-
C195: Масса порции | E195: Ж | G195: тическая ценность
A196: рец. | D196: Б | F196: У | G196: (ккал)
A197: 1 | B197: 2 | C197: 3 | D197: 4 | E197: 5 | F197: 6 | G197: 7
A198: Завтрак
A199: 197 | B199: Каша рисовая молочная жидкая | C199: 160 | D199: 7.35 | E199: 9.04 | F199: 49.23 | G199: 307.65
A200: 1 | B200: Чай витаминизированный | C200: 200 | D200: 0 | E200: 0 | F200: 6 | G200: 24
B201: Хлеб пшеничный обогащенный витаминами для детского питания | C201: 30 | D201: 2 | E201: 0,3 | F201: 14,6 | G201: 73
B202: Сыр (порциями) | C202: 10 | D202: 2.63 | E202: 2.66 | F202: 0,1 | G202: 34.46
B203: Сок фруктовый | C203: 200 | D203: 1 | E203: 0.2 | F203: 20.2 | G203: 47
A204: Итого за Завтрак | C204: 600 | D204: =SUM(D199:D203) -> 10.98 | E204: =SUM(E199:E203) -> 11.9 | F204: =SUM(F199:F203) -> 75.43 | G204: 486.11
A206: № | B206: Прием пищи, наименование блюда | C206: Масса порции | D206: Пищевые вещества (г) | G206: Энерге-
A207: рец. | D207: Б | E207: Ж | F207: У | G207: тическая ценность
A208: 1 | B208: 2 | C208: 3 | D208: 4 | E208: 5 | F208: 6 | G208: 7
A209: Обед
A210: 100504 | B210: Салат витаминный | C210: 60 | D210: 0.73 | E210: 6 | F210: 5.63 | G210: 79.48
A211: 110330 | B211: Суп картофельный с фрикадельками мясными | C211: 250 | D211: 10.08 | E211: 7.91 | F211: 19.71 | G211: 195.41
A212: 120609 | B212: Рагу из птицы | C212: 240 | D212: 4.76 | E212: 6.76 | F212: 35.11 | G212: 220.37
A213: 294 | B213: Напиток апельсиновый или лимонный | C213: 200 | D213: 0.09 | E213: 0.02 | F213: 20.77 | G213: 83.62
B214: Хлеб пшеничный обогащенный витаминами для детского питания | C214: 30 | D214: 2.28 | E214: 0.24 | F214: 14.78 | G214: 70.32
B215: Хлеб ржаной | C215: 30 | D215: 1.83 | E215: 0.38 | F215: 11.97 | G215: 68.44
A216: Итого за Обед | C216: =SUM(C210:C215) -> 810 | D216: =SUM(D210:D215) -> 19.77 | E216: =SUM(E210:E215) -> 21.31 | F216: =SUM(F210:F215) -> 107.97 | G216: =SUM(G210:G215) -> 717.64
A229: Рацион: Школьное меню 1-4 кл
A231: _Неделя: 2_ вторник
A233: № | B233: Прием пищи, наименование блюда | C233: Масса порции | D233: Пищевые вещества (г) | G233: Энерге-
A234: рец. | D234: Б | E234: Ж | F234: У | G234: тическая ценность
A235: 1 | B235: 2 | C235: 3 | D235: 4 | E235: 5 | F235: 6 | G235: 7
A236: Завтрак
A237: 177 | B237: Каша пшеничная рассыпчатая с маслом сливочным | C237: 180 | D237: 8.6 | E237: 4.3 | F237: 50.3 | G237: 259.9
A238: 105 | B238: Тефтели из говядины с рисом | C238: 90 | D238: 8.3 | E238: 15.3 | F238: 9.4 | G238: 209.0
A239: 283 | B239: Чай с сахаром и молоком | C239: 200 | D239: 1.5 | E239: 1.6 | F239: 12.4 | G239: 69.59
A240: 1 | B240: Хлеб пшеничный обогащенный витаминами для детского питания | C240: 30 | D240: 2 | E240: 0.3 | F240: 14.6 | G240: 73
A242: Итого за Завтрак | C242: =SUM(C237:C240) -> 500 | D242: =SUM(D237:D240) -> 20.3 | E242: =SUM(E237:E240) -> 21.5 | F242: =SUM(F237:F240) -> 86.7 | G242: =SUM(G237:G240) -> 611.5
A244: № рец. | B244: Прием пищи, наименование блюда | C244: Масса порции | D244: Пищевые вещества (г) | G244: Энергетическая ценность
D245: Б | E245: Ж | F245: У
A246: 1 | B246: 2 | C246: 3 | D246: 4 | E246: 5 | F246: 6 | G246: 7
A247: Обед
A248: 110201 | B248: Рассольник ленинградский | C248: 250 | D248: 0.92 | E248: 1.15 | F248: 6.77 | G248: 41.12
A249: 95 | B249: Жаркое по-домашнему | C249: 200 | D249: 23.79 | E249: 25.59 | F249: 21.57 | G249: 411.77
A250: 160209 | B250: Компот из яблок | C250: 200 | D250: 0.14 | E250: 0.02 | F250: 10.43 | G250: 104.1
B251: Хлеб пшеничный обогащенный витаминами для детского питания | C251: 30 | D251: 2.28 | E251: 0.24 | F251: 14.78 | G251: 70.32
B252: Хлеб ржаной | C252: 30 | D252: 1.83 | E252: 0.38 | F252: 11.97 | G252: 68.44
A253: Итого за Обед 710 | D253: =SUM(D248:D252) -> 28.96 | E253: =SUM(E248:E252) -> 27.38 | F253: =SUM(F248:F252) -> 65.52 | G253: =SUM(G248:G252) -> 695.75
A266: Рацион: Школьное меню 1-4 кл
A268: Неделя: 2_ среда
A270: № | B270: Прием пищи, наименование блюда | C270: Масса порции | D270: Пищевые вещества (г) | G270: Энерге-
A271: рец. | D271: Б | E271: Ж | F271: У | G271: тическая ценность
A272: 1 | B272: 2 | C272: 3 | D272: 4 | E272: 5 | F272: 6 | G272: 7
A273: Завтрак
A274: 120605 | B274: Плов из курицы | C274: 160 | D274: 17.39 | E274: 24.7 | F274: 30.43 | G274: 413.48
A275: 288 | B275: Какао с молоком | C275: 200 | D275: 3.39 | E275: 3.5 | F275: 14.88 | G275: 104.58
B276: Хлеб пшеничный обогащенный витаминами для детского питания | C276: 40 | D276: 2 | E276: 0.3 | F276: 14.6 | G276: 73
B277: Фрукт | C277: 100 | D277: 0.4 | E277: 0.4 | F277: 9.8 | G277: 47
A278: Итого за Завтрак | C278: 545 | D278: =SUM(D274:D277) -> 22.78 | E278: =SUM(E274:E277) -> 28.9 | F278: =SUM(F274:F277) -> 69.71 | G278: =SUM(G274:G277) -> 638.06
A280: № | B280: Прием пищи, наименование блюда | C280: Масса порции | D280: Пищевые вещества (г) | G280: Энерге-
A281: рец. | D281: Б | E281: Ж | F281: У | G281: тическая ценность
A282: 1 | B282: 2 | C282: 3 | D282: 4 | E282: 5 | F282: 6 | G282: 7
A283: Обед
A284: 110331 | B284: Суп крестьянский с крупой | C284: 250 | D284: 0.74 | E284: 1.78 | F284: 4.5 | G284: 36.89
A285: 93 | B285: Гуляш из отварной говядины | C285: 110 | D285: 24.29 | E285: 23.88 | F285: 3.9 | G285: 327.7
A286: 215 | B286: Макаронные изделия отварные | C286: 200 | D286: 7.87 | E286: 6 | F286: 50.15 | G286: 286.03
A287: 282 | B287: Чай с сахаром | C287: 200 | F287: 10 | G287: 39.99
B288: Хлеб пшеничный обогащенный витаминами для детского питания | C288: 30 | D288: 2.28 | E288: 0.24 | F288: 14.78 | G288: 70.32
B289: Хлеб ржаной | C289: 30 | D289: 1.83 | E289: 0.38 | F289: 11.97 | G289: 68.44
A290: Итого за Обед | C290: =SUM(C284:C289) -> 820 | D290: =SUM(D284:D289) -> 37.01 | E290: =SUM(E284:E289) -> 32.28 | F290: =SUM(F284:F289) -> 95.3 | G290: =SUM(G284:G289) -> 829.37
A303: Рацион: Школьное меню 1-4 кл
A305: _Неделя: 2_ четверг
A307: № | B307: Прием пищи, наименование блюда | C307: Масса порции | D307: Пищевые вещества (г) | G307: Энерге-
A308: рец. | D308: Б | E308: Ж | F308: У | G308: тическая ценность
A309: 1 | B309: 2 | C309: 3 | D309: 4 | E309: 5 | F309: 6 | G309: 7
A310: Завтрак
A311: 101 | B311: Фрикадельки из говядины | C311: 60/30 | D311: 9.94 | E311: 10.95 | F311: 7.18 | G311: 167.02
A312: 175 | B312: Каша гречневая рассыпчатая | C312: 170 | D312: 9.98 | E312: 5.66 | F312: 45.16 | G312: 271.48
A313: 284 | B313: Чай с лимоном и сахаром | C313: 200 | D313: 0.06 | E313: 0.01 | F313: 10.21 | G313: 41.15
B314: Хлеб пшеничный обогащенный витаминами для детского питания | C314: 30 | D314: 2 | E314: 0.3 | F314: 14.6 | G314: 73
B315: Сыр (порциями) | C315: 10 | D315: 2.63 | E315: 2.66 | F315: 0.35 | G315: 34.46
... 271 more rows

Sheet Лист1
D12: Салат из моркови
D13: Суп картофельный с бобовыми и гренками
D14: Гуляш из отварного мяса
D15: Картофель отварной
D16: Чай с молоком сахаром
D17: Хлеб пшеничный обогащенный витаминами для детского питания
D18: Хлеб ржаной
